[Event "Rohde op 12th"]
[Site "Sautron"]
[Date "2012.10.28"]
[Round "2"]
[White "Le Roux, Jean Pierre"]
[Black "Karpatchev, Aleksandr"]
[Result "1-0"]
[ECO "D24"]
[WhiteElo "2563"]
[BlackElo "2458"]
[Annotator "Primel,D"]
[PlyCount "101"]
[EventDate "2012.10.27"]
[EventType "swiss"]
[EventRounds "9"]
[EventCountry "FRA"]
[SourceTitle "EXT 2014"]
[Source "ChessBase"]
[SourceDate "2013.11.20"]
[SourceVersion "1"]
[SourceVersionDate "2013.11.20"]
[SourceQuality "1"]
[TimeControl "40/5400+30:1800+30"]
[WhiteClock "1:30:00"]
[BlackClock "1:30:00"]

1. d4 {[%emt 0:00:00]} d5 {[%emt 0:00:00]} 2. Nf3 {[%emt 0:00:12]} Nf6 {
[%emt 0:01:02]} 3. c4 {[%emt 0:01:02]} dxc4 {[%emt 0:00:32]} (3... c6 4. Nc3
dxc4 5. a4 e6 6. e4 Bb4 7. e5 Nd5 8. Bd2 b5 9. axb5 Bxc3 10. bxc3 cxb5 11. Ng5
{Donne un millieu de jeu assez proche de la partie}) 4. Nc3 {[%emt 0:01:21]} (
4. e3 {La grande ligne}) 4... a6 $1 {[%emt 0:00:53]} 5. e4 {[%emt 0:12:36] Le
meilleur coup mais le breton a hésité dans son choix} (5. a4 $142 Nc6 $132)
5... b5 {[%emt 0:00:58]} 6. e5 {[%emt 0:00:09]} Nd5 {[%emt 0:00:06]} 7. Ng5 {
[%emt 0:00:16]} (7. a4 Nxc3 8. bxc3 Qd5) 7... e6 {[%emt 0:18:43]} 8. Qh5 {
[%emt 0:00:56]} (8. Qf3 $143 {Bogoljubow,E-Alekhine,A World Championship 15th
1934 (17) 0-1}) 8... Qe7 {[%emt 0:03:52]} (8... Qd7 9. Be2 Bb7 10. O-O h6 11.
Bg4 g6 12. Qh3 Nxc3 13. bxc3 Bd5 14. Bf3 Qc6 15. a4 Be7 16. Re1 Bxf3 17. gxf3
Bxg5 18. Bxg5 Nd7 19. Bf6 Rh7 20. d5 Qxd5 21. Red1 Qc6 22. axb5 axb5 23. Rxa8+
{Rogers,I (2569)-D'Costa,L (2352)/Amsterdam 2005/CBM 107 ext/1-0 (35)}) 9. Be2
{[%emt 0:07:51]} g6 {[%emt 0:06:23]} 10. Qh3 $1 $146 {[%emt 0:03:33]} ({RR} 10.
Qf3 Bb7 11. Nge4 Nd7 12. Bg5 Qb4 13. a3 Qxb2 14. Ra2 Nxc3 15. Rxb2 Nxe4 16.
Bxc4 Nd6 17. Be2 Bxf3 18. Bxf3 Nc4 {0-1 Nester,I (2354)-Brodowski,P (2365)/
Gdansk 2007/CBM 119 ext}) 10... Bb7 {[%emt 0:09:29]} 11. Bf3 {[%emt 0:07:06]} (
11. O-O $5 h6 12. Nge4 Bg7 13. Nc5 Nxc3 14. bxc3 Bd5 15. a4 $1 {[%cal Ga1a8,
Gc1a3]} Nd7 16. Ba3 $14) 11... h6 {[%emt 0:15:29] Chasse le N mais les Noirs
auront ensuite du mal а roquer а cause de la pression sur le P"h6"} 12. O-O {
[%emt 0:08:35]} Bg7 {[%emt 0:01:38]} 13. Nge4 {[%emt 0:00:58][%csl Gc5,Gf6] La
position est assez proche d'un gambit Slave mais les Noirs n'ont pas affaibli
la case "d6"} Nd7 {[%emt 0:00:46]} 14. Re1 {[%emt 0:12:45]} Kf8 {[%emt 0:08:59]
[%cal Gf8g8,Gg8h7] Les Noirs sont obligés de "roquer а la main"} 15. Bd2 {
[%emt 0:04:52]} Rb8 {[%emt 0:04:54]} (15... Nb4 $5 {[%cal Gb4d3]}) (15... Kg8 {
[%cal Gg8h7]}) 16. Rad1 $16 {[%emt 0:12:50] Les pièces Blanches sont
maintenant plus actives} Kg8 {[%emt 0:01:53]} 17. a3 {[%emt 0:01:47]} Nxc3 $5 {
[%emt 0:05:39][%cal Gb7e4,Gd7b6,Gb6d5] Début d'une simplification au centre
afin d'activer le Nd7} 18. Bxc3 {[%emt 0:02:39]} Bxe4 {[%emt 0:08:47] Les
Noirs commençaient а être en gros retard а la pendule mais le Bb7 était une
des rares pièces actives des Noirs} 19. Bxe4 {[%emt 0:02:11]} Kh7 {[%emt 0:00:
19]} 20. Bc6 $1 {[%emt 0:04:03]} (20. d5 $6 exd5 21. Bxd5 Nb6 22. Bb4 c5 23.
Ba5 Nxd5 24. Rxd5 b4 {[%csl Ra5]}) 20... Nb6 {[%emt 0:01:14]} 21. Qf3 {[%emt 0:
01:09]} Nd5 $6 {[%emt 0:05:30] Les Noirs ont maintenant moins de 05 mns pour
passer le contrôle de temps et ils décident de sacrifier un P.} 22. Bxd5 {
[%emt 0:00:48]} exd5 {[%emt 0:00:01]} 23. Qxd5 {[%emt 0:00:21]} Qe6 {[%emt 0:
01:48]} 24. Qxe6 {[%emt 0:02:04]} (24. Qe4 {[%cal Gd4d5]} c6 25. d5 {[%csl Gd1]
[%cal Gf2f4,Gf4f5]}) 24... fxe6 {[%emt 0:00:01]} 25. d5 $1 $32 {[%emt 0:00:05]
Curieusement au 25ème coup, les Noirs sont encore en retard de développement!}
Rhe8 {[%emt 0:02:27]} 26. d6 $36 {[%emt 0:03:03]} cxd6 {[%emt 0:00:17]} 27.
Rxd6 {[%emt 0:00:04][%csl Ra6,Re6,Rg7]} Ra8 {[%emt 0:00:37]} 28. Red1 {[%emt 0:
01:08]} Bf8 {[%emt 0:01:02]} 29. Rb6 {[%emt 0:00:53][%cal Gb6b7,Gd1d7]} Kg8 {
[%emt 0:00:31]} (29... Ra7 {Passif mais les Noirs évitent Rd7} 30. Kf1) 30. Rd7
{[%emt 0:01:22][%cal Gb6b7]} Red8 {[%emt 0:00:32]} 31. Rxd8 $1 {[%emt 0:00:48]}
(31. Rbb7 $143 Rxd7 32. Rxd7) 31... Rxd8 {[%emt 0:00:00]} 32. Kf1 {[%emt 0:00:
08] Le gauigampais a une excellent finale même si le P"e5" gêne une peu le Bc3
mais il contrôle des cases importantes.} Kf7 {[%emt 0:00:58]} 33. Rxa6 {
[%emt 0:02:00]} (33. f4 g5) 33... g5 {[%emt 0:00:23][%cal Gf7g6,Gg6f5]} 34. Ke2
{[%emt 0:03:53]} Rd5 {[%emt 0:00:06]} 35. g3 {[%emt 0:01:03][%cal Gf2f4]} g4 {
[%emt 0:00:47]} 36. f4 {[%emt 0:01:01]} gxf3+ {[%emt 0:00:41]} 37. Kxf3 {
[%emt 0:00:04]} Bc5 {[%emt 0:00:13]} 38. Ke4 $36 {[%emt 0:01:45]} h5 {[%emt 0:
00:41][%cal Gc5g1]} 39. Ra5 {[%emt 0:00:48]} Bb6 {[%emt 0:00:02]} (39... Bg1
40. h3) 40. Ra8 {[%emt 0:00:00]} Bg1 {[%emt 0:00:00]} 41. Rh8 {[%emt 0:09:13]}
Bxh2 {[%emt 0:09:31]} 42. g4 $1 {[%emt 0:04:26]} Kg7 {[%emt 0:00:11]} 43. Rxh5
{[%emt 0:00:15][%csl Gg4]} Bg1 {[%emt 0:00:05]} 44. g5 {[%emt 0:01:37]} Rd3 $2
{[%emt 0:18:15] Comme souvent le camp en infériorité se déconcentre juste
après le passage du contrôle de temps} 45. Rh6 $18 {[%emt 0:01:07]} Bc5 {
[%emt 0:00:42]} 46. Rxe6 {[%emt 0:00:34]} Bxa3 {[%emt 0:00:07]} 47. Rc6 {
[%emt 0:07:03]} Be7 {[%emt 0:01:58]} 48. Rc7 {[%emt 0:00:56]} Kf8 {[%emt 0:00:
40]} 49. g6 {[%emt 0:02:21]} Rg3 {[%emt 0:00:11]} 50. Rc8+ {[%emt 0:02:19]} Kg7
{[%emt 0:00:30]} 51. e6+ {[%emt 0:00:10]} 1-0

[Event "Rohde op 12th"]
[Site "Sautron"]
[Date "2012.10.30"]
[Round "5"]
[White "Marholev, Dimitar"]
[Black "Rusev, Krasimir"]
[Result "0-1"]
[ECO "D24"]
[WhiteElo "2326"]
[BlackElo "2549"]
[Annotator "RR"]
[PlyCount "52"]
[EventDate "2012.10.27"]
[EventType "swiss"]
[EventRounds "9"]
[EventCountry "FRA"]
[SourceTitle "EXT 2014"]
[Source "ChessBase"]
[SourceDate "2013.11.20"]
[SourceVersion "1"]
[SourceVersionDate "2013.11.20"]
[SourceQuality "1"]
[TimeControl "40/5400+30:1800+30"]
[WhiteClock "1:30:00"]
[BlackClock "1:30:00"]

1. d4 {[%emt 0:00:00]} d5 {[%emt 0:00:00]} 2. c4 {[%emt 0:00:17]} dxc4 {
[%emt 0:00:00]} 3. Nf3 {[%emt 0:01:05]} c5 {[%emt 0:01:12]} 4. d5 {[%emt 0:01:
14]} Nf6 {[%emt 0:00:53]} 5. Nc3 {[%emt 0:01:46]} e6 {[%emt 0:01:56]} 6. e4 {
[%emt 0:02:10]} exd5 {[%emt 0:00:34]} (6... a6) 7. e5 {[%emt 0:05:21]} (7. exd5
) 7... d4 {[%emt 0:02:26]} (7... Nfd7 {La grande ligne et la poussée d4 est
assez risquée pour les Noirs} 8. Bg5 (8. Qxd5 Nb6 9. Qxd8+ Kxd8 10. Bg5+ Be7
11. O-O-O+ Ke8 12. Bxe7 Kxe7 13. Bxc4 $1 Nxc4 14. Nd5+ Kd7 15. Nb6+ {[%csl Rd7]
})) 8. Bxc4 {[%emt 0:11:33][%cal Gc4f7,Gd1d8]} Ng4 {[%emt 0:03:17]} (8... Be6
$6 9. Bxe6 fxe6 10. exf6) (8... dxc3 $6 9. Bxf7+ $40) 9. Ne4 $146 {[%emt 0:04:
31]} (9. Qb3 Qd7 10. h3 Nc6 11. hxg4 Na5 12. e6 ({RR} 12. Qb5 Nxc4 13. Qxc4
dxc3 14. Qxc3 Be7 15. g5 b6 16. O-O Qe6 17. Bf4 O-O 18. Nd2 Rd8 19. Rfe1 Bb7
20. Qg3 Rd4 21. Nf3 Rd3 22. Be3 Rad8 23. b3 Bf8 24. Rac1 a5 25. Rc4 Rd1 26.
Rxd1 Rxd1+ {Bronznik,V (2413)-David,V (2312)/Rochefort 2004/EXT 2005/0-1 (42)})
12... fxe6 13. Qb5 Nxc4 14. Qxc4 dxc3 15. Qxc3 Qa4 16. Bg5 Qb4 17. Qxb4 cxb4
18. Ne5 Bd7 19. Ng6 Rg8 20. Rxh7 Bc6 21. Kd2 Bc5 22. Re1 Bd5 23. b3 Bd6 {
Nagle,S (2375)-Danner,G (2393)/Budapest 2004/CBM 100 ext/1/2-1/2 (45)}) 9...
Nc6 {[%emt 0:01:48]} 10. Bf4 {[%emt 0:02:38]} (10. O-O $5 {[%csl Re8] Plus
souple} Ngxe5 (10... Ncxe5 11. Nxe5 Nxe5 12. Re1 Be7 (12... Nxc4 13. Nf6#) 13.
Nxc5 Nxc4 14. Qa4+ Bd7 15. Qxc4 O-O 16. Nxb7 Qb6 (16... Rc8) 17. Rxe7 Rae8 (
17... Qxb7 18. Qxd4) 18. Bg5 Qxb7 19. Rxe8 Rxe8 20. Qxd4 Bc6) 11. Re1 {[%cal
Ge1e8]} Be7 (11... Nxc4 12. Nf6#) 12. Nxe5 Nxe5 13. Nxc5 Nxc4 14. Qa4+ Bd7 15.
Qxc4 O-O 16. Nxb7 Qb6 17. Rxe7) (10. e6 $5 Bxe6 11. Bxe6 fxe6 12. Nfg5 Nf6 13.
Nxe6 Qe7 14. Nxf6+ Qxf6 15. O-O Qxe6 16. Re1 Ne5 17. Bf4 Bd6 18. Bxe5 Bxe5 19.
Qh5+ (19. f4) 19... g6 20. Qxe5 Qxe5 21. Rxe5+ Kd7 22. Rxc5 $11) 10... b5 $1 {
[%emt 0:20:51]} 11. Be2 {[%emt 0:10:06]} (11. Bxf7+ $6 Kxf7 12. Qb3+ c4 13.
Qxb5 Nb4 14. Qxc4+ Qd5) (11. Bg5 $5 Qa5+ 12. Bd2) 11... c4 {[%emt 0:04:44]} 12.
h3 {[%emt 0:02:20]} d3 $36 {[%emt 0:00:54]} 13. hxg4 {[%emt 0:00:57]} Bxg4 {
[%emt 0:02:05]} 14. Nd6+ {[%emt 0:02:28]} Bxd6 {[%emt 0:00:15]} 15. exd6 {
[%emt 0:00:09]} Nb4 {[%emt 0:05:02]} 16. O-O {[%emt 0:05:19]} O-O {[%emt 0:01:
15]} 17. a4 {[%emt 0:02:09]} Re8 $40 {[%emt 0:02:12]} 18. Bxd3 {[%emt 0:01:38]}
Nxd3 {[%emt 0:00:23]} 19. Bg3 {[%emt 0:00:11]} f5 $1 {[%emt 0:02:21][%cal
Gf5f4]} 20. axb5 {[%emt 0:00:27]} f4 $19 {[%emt 0:00:16]} 21. Qc2 {[%emt 0:05:
12]} Rc8 {[%emt 0:02:11]} 22. Bh4 {[%emt 0:00:09]} Qxd6 {[%emt 0:00:17]} 23.
Nh2 {[%emt 0:00:34]} Be2 {[%emt 0:00:35]} 24. Rfb1 {[%emt 0:00:34]} Qh6 {
[%emt 0:01:23]} 25. g3 {[%emt 0:00:48]} g5 {[%emt 0:00:42]} 26. Ra6 {[%emt 0:
00:37]} Qg7 {[%emt 0:00:48]} 0-1